bitfinex-derivatives/quotes_BTCF0:USTF0_20260118
["timestamp","ask_amount","ask_price","bid_price","bid_amount"]
[1768704629411,0.00926064,95072.0,95056.0,0.09472]
[1768704629901,0.00926064,95071.0,95056.0,0.09472]
[1768704630413,0.010523,95069.0,95056.0,0.09472]
[1768704638014,0.09472,95078.0,95049.0,0.00231461]
[1768704638015,0.09545434,95062.0,95049.0,6.1e-07]
[1768704638212,0.010524,95058.0,95049.0,6.1e-07]
[1768704638417,0.00981887,95059.0,95049.0,6.1e-07]
[1768704640523,0.010524,95056.0,95049.0,6.1e-07]
[1768704641821,0.010524,95056.0,95039.0,0.00606178]
[1768704642126,0.010524,95056.0,95039.0,0.00013278]
[1768704643426,0.00981887,95059.0,95040.0,0.010526]
[1768704644629,0.010524,95058.0,95039.0,0.01065878]
[1768704648435,0.010524,95056.0,95039.0,0.01065878]
[1768704649134,0.010524,95056.0,95039.0,0.010526]
[1768704649334,0.00981887,95057.0,95036.0,0.11841998]
[1768704650438,0.010525,95055.0,95037.0,0.00810605]
[1768704651135,0.010525,95055.0,95038.0,0.010526]
[1768704651433,0.00981887,95057.0,95038.0,0.010526]
[1768704651636,0.010524,95058.0,95040.0,0.010526]
[1768704652935,0.010524,95058.0,95040.0,0.01862999]
[1768704654434,0.00981887,95060.0,95047.0,0.010525]
[1768704654633,0.09476,95061.0,95047.0,0.010525]
[1768704658334,0.10465054,95061.0,95047.0,0.010525]
[1768704659340,0.10465054,95061.0,95044.0,0.010526]
[1768704661140,0.10465054,95061.0,95041.0,0.00811916]
[1768704661141,0.09476,95061.0,95046.0,0.010525]
[1768704661939,0.10465054,95061.0,95046.0,0.010525]
[1768704665743,0.00989054,95060.0,95046.0,0.010525]
[1768704666948,0.00989054,95060.0,95048.0,0.010525]
[1768704668146,0.00989054,95060.0,95041.0,0.00811916]
[1768704670447,0.00989054,95060.0,95046.0,0.010525]
[1768704670655,0.09476,95061.0,95046.0,0.00838481]
[1768704671451,0.09476,95061.0,95045.0,0.09140816]
[1768704671951,0.09476,95061.0,95049.0,0.010525]
[1768704672152,0.1094137,95060.0,95049.0,0.010525]
[1768704673650,0.1094137,95060.0,95041.0,0.00838682]
[1768704676353,0.1094137,95060.0,95050.0,0.010525]
[1768704677356,0.1094137,95060.0,95041.0,0.10314682]
[1768704677549,0.1094137,95060.0,95049.0,0.010525]
[1768704678459,0.1094137,95060.0,95051.0,0.010525]
[1768704679459,0.00989054,95059.0,95041.0,0.09476]
[1768704680552,5.4e-07,95059.0,95053.0,0.010525]
[1768704682055,0.09952316,95060.0,95053.0,0.010525]
[1768704687369,0.09952316,95060.0,95050.0,0.010525]
[1768704687965,0.10922251,95060.0,95052.0,0.010525]
[1768704693671,0.00969935,95059.0,95052.0,0.010525]
[1768704693967,0.00969935,95059.0,95049.0,0.010525]
[1768704695072,0.00969935,95059.0,95046.0,0.010525]
[1768704697274,0.00969935,95059.0,95048.0,0.010525]
[1768704700778,0.00969935,95059.0,95042.0,0.010526]
[1768704700978,0.00969935,95059.0,95044.0,0.010526]
[1768704701973,0.2101623,95060.0,95044.0,0.010526]
[1768704702980,0.21973449,95060.0,95044.0,0.010526]
[1768704703680,0.00957219,95058.0,95044.0,0.010526]
[1768704703881,0.00957219,95058.0,95041.0,0.13372155]
[1768704704082,0.00957219,95050.0,95041.0,0.12319555]
[1768704704381,0.00957219,95050.0,95041.0,0.09476]
[1768704704681,0.2036972,95051.0,95041.0,0.09476]
[1768704704882,0.09305806,95051.0,95041.0,0.09476]
[1768704705082,0.00957219,95054.0,95041.0,0.09476]
[1768704706884,0.00957219,95054.0,95041.0,0.105286]
[1768704707088,0.09305806,95056.0,95041.0,0.105286]
[1768704708984,0.09305806,95056.0,95041.0,0.09476]
[1768704712183,0.1049881,95053.0,95036.0,0.02843555]
[1768704712381,0.00922449,95043.0,95033.0,0.02843555]
[1768704712576,0.11986363,95043.0,95033.0,0.02843555]
[1768704712980,0.11063914,95043.0,95033.0,0.02843555]
[1768704713278,0.11063914,95043.0,95029.0,0.01284209]
[1768704713484,0.11063914,95040.0,95029.0,0.01284209]
[1768704717583,0.11063914,95040.0,95029.0,0.00231509]
[1768704723295,0.00922449,95043.0,95029.0,0.00231509]
[1768704723506,0.11063914,95040.0,95029.0,0.00231509]
[1768704725404,0.00922449,95042.0,95029.0,0.00231509]
[1768704725709,0.11063914,95040.0,95029.0,0.00231509]
[1768704725910,0.00922449,95039.0,95029.0,0.00231509]
[1768704727206,0.00922449,95038.0,95029.0,0.00231509]
[1768704728112,0.00922449,95035.0,95025.0,9.487e-05]
[1768704733110,0.010527,95034.0,95025.0,9.487e-05]
[1768704733316,0.00922449,95035.0,95025.0,9.487e-05]
[1768704736419,0.09576361,95036.0,95025.0,9.487e-05]
[1768704737617,0.00922449,95039.0,95025.0,9.487e-05]
[1768704739922,0.00922449,95039.0,95026.0,0.010528]
[1768704742421,0.00922449,95039.0,95025.0,9.487e-05]
[1768704745829,0.10513007,95039.0,95025.0,9.487e-05]
[1768704746022,0.00986945,95038.0,95025.0,9.487e-05]
[1768704748724,0.09590558,95038.0,95025.0,9.487e-05]
[1768704749028,0.00986945,95037.0,95025.0,9.487e-05]
[1768704753823,0.00986945,95037.0,95025.0,0.01062287]
[1768704758237,0.00986945,95037.0,95027.0,0.010527]
[1768704771639,0.09590558,95038.0,95027.0,0.010527]
[1768704775844,0.09590558,95038.0,95029.0,0.010527]
[1768704776051,0.00974384,95041.0,95032.0,0.010527]
[1768704776437,0.00925785,95046.0,95028.0,0.02843916]
[1768704776749,0.09242988,95049.0,95035.0,0.010527]
[1768704776949,0.10168773,95049.0,95035.0,0.010527]
[1768704777149,0.00925785,95047.0,95035.0,0.010527]
[1768704781253,0.00925785,95047.0,95029.0,0.02843916]
[1768704781254,0.00925785,95047.0,95032.0,0.010527]
[1768704783055,0.00925785,95045.0,95029.0,0.13372616]
[1768704783355,0.00925785,95044.0,95029.0,0.105287]
[1768704785255,0.09011527,95045.0,95032.0,0.010527]
[1768704785557,0.09011527,95045.0,95034.0,0.010527]
[1768704788056,0.09011527,95045.0,95036.0,0.010526]
[1768704790358,0.09011527,95045.0,95029.0,0.09476]
[1768704792459,0.09011527,95045.0,95034.0,0.010527]
[1768704796962,0.09011527,95045.0,95036.0,0.010526]
[1768704799456,0.09011527,95045.0,95035.0,0.010527]
[1768704799755,0.09937312,95045.0,95035.0,0.010527]
[1768704801868,0.09937312,95045.0,95029.0,0.09476]
[1768704801869,0.09937312,95045.0,95037.0,0.010526]
[1768704804071,0.09937312,95045.0,95039.0,0.010526]
[1768704808983,5.6e-07,95043.0,95037.0,0.010526]
[1768704809688,0.00902735,95044.0,95037.0,0.010526]
[1768704812888,0.00902735,95044.0,95034.0,0.010527]
[1768704813989,0.09992256,95048.0,95034.0,0.010527]
[1768704814190,0.00902735,95047.0,95034.0,0.010527]
[1768704821094,0.00902735,95047.0,95030.0,0.13910851]
[1768704821896,0.00902735,95047.0,95031.0,0.02844005]
[1768704822396,0.00902735,95047.0,95036.0,0.010527]
[1768704824097,0.09992256,95048.0,95036.0,0.010527]
[1768704824496,0.1091883,95048.0,95036.0,0.010527]
[1768704824697,0.00926574,95047.0,95036.0,0.010527]
[1768704828301,0.00926574,95047.0,95033.0,0.010527]
[1768704837113,0.00926574,95047.0,95029.0,0.02844146]
[1768704838405,0.00926574,95047.0,95035.0,0.010527]
[1768704843514,0.09992256,95048.0,95035.0,0.010527]
[1768704851106,0.10905473,95048.0,95035.0,0.010527]
[1768704854125,0.10905473,95048.0,95032.0,0.010527]
[1768704854621,0.10905473,95048.0,95034.0,0.010527]
[1768704858625,0.00913217,95047.0,95034.0,0.010527]
[1768704859723,0.00913217,95047.0,95036.0,0.010526]
[1768704860829,0.00913217,95047.0,95028.0,0.18955226]
[1768704861425,0.00913217,95047.0,95035.0,0.010527]
[1768704866331,0.01283712,95069.0,95042.0,0.09828648]
[1768704866537,0.09476,95067.0,95047.0,0.11878183]
[1768704866836,0.09476,95067.0,95049.0,0.00997035]
[1768704867137,0.10392691,95067.0,95048.0,0.09828648]
[1768704867526,0.10392691,95067.0,95049.0,0.010525]
[1768704867726,0.10392691,95067.0,95048.0,0.09828648]
[1768704867926,0.01139256,95065.0,95048.0,0.09828648]
[1768704868333,0.01139256,95065.0,95049.0,0.010525]
[1768704869124,0.01139256,95065.0,95051.0,0.010525]
[1768704869323,0.10392691,95067.0,95051.0,0.010525]
[1768704871236,7e-07,95070.0,95048.0,0.10825683]
[1768704871443,0.010522,95081.0,95058.0,0.010524]
[1768704871741,0.010522,95078.0,95055.0,0.10825683]
[1768704871940,0.01143975,95078.0,95055.0,0.09828648]
[1768704872238,0.09476,95086.0,95055.0,0.09828648]
[1768704872444,0.010522,95074.0,95055.0,0.09828648]
[1768704873336,0.01968891,95074.0,95055.0,0.09828648]
[1768704874440,0.00916691,95074.0,95056.0,0.010524]
[1768704875430,0.010522,95073.0,95055.0,0.09828648]
[1768704875636,0.010522,95073.0,95056.0,0.010524]
[1768704875836,0.00916691,95074.0,95056.0,0.010524]
[1768704877634,0.00916691,95074.0,95059.0,0.010524]
[1768704878537,0.09478771,95078.0,95059.0,0.010524]
[1768704878742,0.10382113,95078.0,95059.0,0.010524]
[1768704878935,0.00903342,95077.0,95059.0,0.010524]
[1768704881535,0.03087448,95081.0,95062.0,0.09836403]
[1768704881728,0.02184106,95081.0,95066.0,0.09836403]
[1768704881930,0.01131906,95081.0,95066.0,0.09836403]
[1768704882247,0.010521,95084.0,95066.0,0.09836403]
[1768704882432,0.01955442,95084.0,95066.0,0.09836403]
[1768704883640,0.03077565,95084.0,95066.0,0.09836403]
[1768704883842,0.00903342,95083.0,95066.0,0.09836403]
[1768704884242,0.010521,95082.0,95066.0,0.09836403]
[1768704886630,0.010521,95082.0,95068.0,0.09836403]
[1768704886830,0.01122123,95084.0,95068.0,0.10793406]
[1768704887044,0.010521,95083.0,95068.0,0.10793406]
[1768704887544,0.010521,95083.0,95068.0,0.09836403]
[1768704889241,0.0113697,95084.0,95068.0,0.09836403]
[1768704889448,0.00903342,95084.0,95068.0,0.09836403]
[1768704890448,0.010522,95081.0,95068.0,0.09836403]
[1768704891755,0.01955442,95084.0,95068.0,0.09836403]
[1768704892453,0.03099401,95084.0,95068.0,0.09836403]
[1768704894763,0.02196059,95084.0,95068.0,0.10788125]
[1768704896060,0.01143959,95084.0,95068.0,0.10788125]
[1768704896260,0.0092546,95084.0,95068.0,0.09836403]
[1768704896467,0.02084956,95084.0,95068.0,0.09836403]
[1768704897560,0.010522,95080.0,95068.0,0.09836403]
[1768704899163,0.010522,95078.0,95068.0,0.09836403]
[1768704900268,0.010522,95078.0,95068.0,0.01812663]
[1768704902673,0.010522,95081.0,95068.0,0.01812663]
[1768704904573,0.09476,95083.0,95068.0,0.01812663]
[1768704904770,0.09476,95083.0,95069.0,0.00951722]
[1768704904971,0.010522,95082.0,95069.0,0.00951722]
[1768704905771,0.09476,95083.0,95072.0,0.00951722]
[1768704906172,0.09476,95083.0,95071.0,0.09051935]
[1768704906475,0.0092546,95097.0,95077.0,0.10003657]
[1768704906774,0.010521,95086.0,95073.0,0.00951722]
[1768704907869,0.0092546,95090.0,95071.0,0.09051935]
[1768704908171,0.0092546,95089.0,95071.0,0.09051935]
[1768704909674,0.01244998,95090.0,95071.0,0.10003657]
[1768704909876,0.0092546,95092.0,95071.0,0.10003657]
[1768704910176,0.0033256,95092.0,95071.0,0.10003657]
[1768704910477,0.10003961,95093.0,95071.0,0.10003657]
[1768704912478,0.10929421,95093.0,95071.0,0.10003657]
[1768704912775,0.010522,95080.0,95071.0,0.10003657]
[1768704914472,0.010522,95080.0,95072.0,0.00951722]
[1768704917376,0.09476,95089.0,95076.0,0.10003657]
[1768704917880,0.010521,95088.0,95076.0,0.10003657]
[1768704918479,0.010521,95088.0,95077.0,0.00951722]
[1768704918779,0.09476,95089.0,95078.0,0.10003657]
[1768704918985,0.010521,95088.0,95078.0,0.10003657]
[1768704920983,0.01242866,95093.0,95079.0,0.09051935]
[1768704921190,0.01052,95092.0,95086.0,5.7e-07]
[1768704921380,0.01052,95092.0,95065.0,0.09476]
[1768704921581,0.01052,95092.0,95065.0,0.12316799]
[1768704922485,0.01052,95092.0,95074.0,0.010522]
[1768704923083,0.01052,95092.0,95075.0,0.00552933]
[1768704923289,0.01052,95092.0,95079.0,0.09873299]
[1768704923482,0.01052,95092.0,95081.0,0.00530209]
[1768704924889,0.01276956,95093.0,95082.0,0.00530209]
[1768704925086,0.01052,95096.0,95082.0,0.00530209]
[1768704925679,0.01052,95094.0,95082.0,0.00530209]
[1768704928891,0.0231905,95094.0,95082.0,0.00530209]
[1768704931292,0.0126705,95094.0,95082.0,0.00530209]
[1768704931496,0.01052,95097.0,95082.0,0.00530209]
[1768704931787,0.010519,95101.0,95084.0,0.00526252]
[1768704931994,0.09476,95100.0,95086.0,0.00526252]
[1768704934687,0.010519,95103.0,95087.0,0.00530019]
[1768704934895,0.105279,95103.0,95087.0,0.00530019]
[1768704935483,0.11775961,95103.0,95087.0,0.00530019]
[1768704936794,0.11775961,95103.0,95086.0,0.09898243]
[1768704936994,0.11775961,95103.0,95086.0,0.1042717]
[1768704937993,0.010519,95101.0,95086.0,0.1042717]
[1768704944194,0.10724061,95103.0,95086.0,0.1042717]
[1768704945191,0.010519,95102.0,95086.0,0.1042717]
[1768704946497,0.010519,95102.0,95087.0,0.010521]
[1768704948498,0.010519,95102.0,95088.0,0.00509815]
[1768704949496,0.010519,95102.0,95087.0,0.010521]
[1768704949998,0.010519,95102.0,95086.0,0.09898243]
[1768704954883,0.010519,95102.0,95086.0,0.10408913]
[1768704955089,0.01052,95100.0,95086.0,0.10408913]
[1768704955600,0.12107907,95100.0,95086.0,0.10408913]
[1768704957693,0.11055907,95100.0,95086.0,0.11461013]
[1768704960802,0.01052,95098.0,95086.0,0.10408913]
[1768704960998,0.010519,95102.0,95086.0,0.10408913]
[1768704961190,0.11055907,95100.0,95086.0,0.10408913]
[1768704961396,0.12107907,95100.0,95086.0,0.10408913]
[1768704963005,0.11055907,95100.0,95087.0,0.010521]
[1768704967505,0.09703326,95104.0,95089.0,0.010521]
[1768704969503,0.00231326,95104.0,95089.0,0.010521]
[1768704972311,0.00231326,95104.0,95091.0,0.01052]
[1768704981217,0.00231315,95109.0,95095.0,0.01052]
[1768704981414,0.00231315,95109.0,95093.0,0.08431033]
[1768704981716,0.00231315,95109.0,95095.0,0.01052]
[1768704984021,0.01283215,95109.0,95093.0,0.08431033]
[1768704986624,0.010519,95106.0,95093.0,0.08431033]
[1768704986804,0.010519,95106.0,95089.0,0.10308959]
[1768704987324,0.01283115,95109.0,95091.0,0.01052]
[1768704988204,0.00231315,95109.0,95093.0,0.01052]
[1768704993020,0.010519,95108.0,95090.0,0.010521]
[1768704993724,0.010519,95108.0,95093.0,0.01052]
[1768704994226,0.00231315,95109.0,95093.0,0.01052]
[1768704997524,0.01283215,95109.0,95093.0,0.01052]
[1768704997721,0.00231315,95109.0,95093.0,0.01052]
[1768704997926,0.00231315,95109.0,95095.0,0.01052]
[1768704999926,0.00231315,95109.0,95097.0,0.01052]
[1768705000633,0.00231315,95109.0,95094.0,0.0003562]
[1768705002328,0.00231315,95109.0,95095.0,0.01052]
[1768705005029,0.00231315,95109.0,95094.0,0.0003562]
[1768705006430,0.00231315,95109.0,95094.0,0.0108762]
[1768705007527,0.00231315,95109.0,95094.0,0.0003562]
[1768705010531,0.00231315,95109.0,95094.0,0.0108762]
[1768705015041,0.00231315,95109.0,95093.0,0.09115711]
[1768705016629,0.010519,95106.0,95093.0,0.09115711]
[1768705016935,0.01052,95100.0,95091.0,0.00028157]
[1768705018638,0.010519,95104.0,95088.0,0.00026833]
[1768705021041,0.010519,95104.0,95088.0,0.09496084]
[1768705021245,0.010519,95104.0,95089.0,8.778e-05]
[1768705022844,0.01190236,95109.0,95089.0,8.778e-05]
[1768705023547,0.010519,95101.0,95089.0,8.778e-05]
[1768705023743,0.010519,95101.0,95088.0,0.09469251]
[1768705029046,0.00958921,95100.0,95084.0,0.00231374]
[1768705029241,0.01052,95093.0,95084.0,0.00231374]
[1768705030252,0.00958921,95099.0,95084.0,0.00231374]
[1768705030438,0.010521,95088.0,95084.0,7.4e-07]
[1768705034538,0.00958921,95093.0,95084.0,7.4e-07]
[1768705035449,0.00958921,95090.0,95084.0,7.4e-07]
[1768705035948,0.10397295,95090.0,95084.0,7.4e-07]
[1768705037041,0.11449395,95090.0,95084.0,7.4e-07]
[1768705037445,0.010521,95088.0,95084.0,7.4e-07]
[1768705039451,0.10397295,95090.0,95084.0,7.4e-07]
[1768705041449,0.01052,95094.0,95084.0,7.4e-07]
[1768705041652,0.02010921,95094.0,95084.0,7.4e-07]
[1768705045661,0.09438374,95095.0,95084.0,7.4e-07]
[1768705048766,0.10490374,95095.0,95084.0,7.4e-07]
[1768705053369,0.00990272,95090.0,95084.0,7.4e-07]
[1768705054362,0.01957964,95087.0,95074.0,0.13259189]
[1768705054561,0.00905864,95087.0,95074.0,0.13259189]
[1768705054773,0.00905864,95087.0,95075.0,0.03787189]
[1768705054968,0.00905864,95087.0,95076.0,0.03787189]
[1768705055168,0.09857654,95089.0,95076.0,0.03787189]
[1768705055858,0.09857654,95089.0,95075.0,0.03787189]
[1768705058061,0.09857654,95089.0,95076.0,0.010522]
[1768705059666,0.10763518,95094.0,95075.0,0.03787189]
[1768705060372,0.00905864,95093.0,95075.0,0.03787189]
[1768705060571,0.00905864,95093.0,95074.0,0.13259189]
[1768705061462,0.00905864,95093.0,95080.0,0.010522]
[1768705063175,0.02140002,95092.0,95080.0,0.010522]
[1768705063375,0.02140002,95091.0,95080.0,0.010522]
[1768705063566,0.02140002,95090.0,95080.0,0.010522]
[1768705063766,0.00905864,95093.0,95080.0,0.010522]
[1768705063966,0.0214001,95092.0,95080.0,0.010522]
[1768705064167,0.0214001,95091.0,95080.0,0.010522]
[1768705064368,0.0214001,95090.0,95080.0,0.010522]
[1768705064573,0.00905864,95093.0,95080.0,0.010522]
[1768705064771,0.02132749,95092.0,95080.0,0.010522]
[1768705064973,0.02132749,95091.0,95077.0,0.010522]
[1768705065276,0.02132749,95090.0,95077.0,0.010522]
[1768705065471,0.00905864,95093.0,95077.0,0.010522]
[1768705065666,0.01052,95091.0,95074.0,0.105242]
[1768705068277,0.02172535,95090.0,95074.0,0.105242]
[1768705068578,0.01052,95091.0,95074.0,0.105242]
[1768705068765,0.02172537,95090.0,95074.0,0.105242]
[1768705068962,0.01052,95091.0,95074.0,0.105242]
[1768705069166,0.02172537,95090.0,95074.0,0.105242]
[1768705069377,0.01052,95091.0,95074.0,0.105242]
[1768705069576,0.02172539,95090.0,95074.0,0.105242]
[1768705069876,0.01052,95091.0,95074.0,0.105242]
[1768705070078,0.02172539,95090.0,95074.0,0.105242]
[1768705070270,0.01052,95091.0,95074.0,0.105242]
[1768705070481,0.02172539,95090.0,95074.0,0.105242]
[1768705070771,0.01052,95091.0,95074.0,0.105242]
[1768705070970,0.02172539,95090.0,95074.0,0.105242]
[1768705071171,0.01052,95091.0,95074.0,0.11438851]
[1768705071370,0.02172535,95090.0,95074.0,0.11438851]
[1768705071563,0.01052,95091.0,95074.0,0.11438851]
[1768705071764,0.02172538,95090.0,95074.0,0.11438851]
[1768705071966,0.01052,95091.0,95074.0,0.11438851]
[1768705072165,0.02172538,95090.0,95074.0,0.11438851]
[1768705072464,0.01052,95091.0,95074.0,0.11438851]
[1768705072666,0.02172534,95090.0,95074.0,0.11438851]
[1768705072877,0.01052,95091.0,95074.0,0.11438851]
[1768705073078,0.02172534,95090.0,95074.0,0.11438851]
[1768705073280,0.00923138,95090.0,95074.0,0.105242]
[1768705073983,0.010521,95089.0,95074.0,0.105242]
[1768705074882,0.00923138,95090.0,95074.0,0.105242]
[1768705075283,0.0939282,95091.0,95074.0,0.105242]
[1768705075584,0.02172519,95090.0,95076.0,0.010522]
[1768705075782,0.0939282,95091.0,95076.0,0.010522]
[1768705075982,0.02172519,95090.0,95076.0,0.010522]
[1768705076184,0.0939282,95091.0,95076.0,0.010522]
[1768705076383,0.02172522,95090.0,95076.0,0.010522]
[1768705076679,0.0939282,95091.0,95076.0,0.010522]
[1768705076876,0.02172518,95090.0,95076.0,0.010522]
[1768705077076,0.0939282,95091.0,95076.0,0.010522]
[1768705077277,0.02165358,95090.0,95076.0,0.010522]
[1768705077477,0.0939282,95091.0,95076.0,0.010522]
[1768705077677,0.02165379,95090.0,95076.0,0.010522]
[1768705077876,0.0939282,95091.0,95076.0,0.010522]
[1768705078091,0.02165379,95090.0,95076.0,0.010522]
[1768705078292,0.0939282,95091.0,95076.0,0.010522]
[1768705078492,0.02165405,95090.0,95076.0,0.010522]
[1768705078693,0.0939282,95091.0,95076.0,0.010522]
[1768705078892,0.02165403,95090.0,95076.0,0.010522]
[1768705079092,0.0939282,95091.0,95076.0,0.010522]
[1768705079299,0.02165403,95090.0,95076.0,0.010522]
[1768705079596,0.0939282,95091.0,95076.0,0.010522]
[1768705079797,0.0216543,95090.0,95076.0,0.010522]
[1768705080000,0.0939282,95091.0,95076.0,0.010522]
[1768705080199,0.0216543,95090.0,95076.0,0.010522]
[1768705080400,0.0939282,95091.0,95076.0,0.010522]
[1768705080592,0.02165464,95090.0,95076.0,0.010522]
[1768705080794,0.0939282,95091.0,95076.0,0.010522]
[1768705082302,0.0216555,95090.0,95076.0,0.010522]
[1768705082492,0.0939282,95091.0,95076.0,0.010522]
[1768705082692,0.0216555,95090.0,95076.0,0.010522]
[1768705082893,0.0939282,95091.0,95076.0,0.010522]
[1768705083102,0.0216555,95090.0,95076.0,0.010522]
[1768705083303,0.0939282,95091.0,95076.0,0.010522]
[1768705083505,0.02165621,95090.0,95076.0,0.010522]
[1768705083696,0.0939282,95091.0,95076.0,0.010522]
[1768705083897,0.02165621,95090.0,95076.0,0.010522]
[1768705084097,0.0939282,95091.0,95076.0,0.010522]
[1768705084405,0.02165623,95090.0,95076.0,0.010522]
[1768705084604,0.0939282,95091.0,95076.0,0.010522]
[1768705084904,0.02165695,95090.0,95076.0,0.010522]
[1768705085106,0.0939282,95091.0,95076.0,0.010522]
[1768705085402,0.02165696,95090.0,95076.0,0.010522]
[1768705085606,0.0939282,95091.0,95076.0,0.010522]
[1768705085804,0.02165695,95090.0,95076.0,0.010522]
[1768705086104,0.02165695,95089.0,95076.0,0.010522]
[1768705086306,0.0939282,95091.0,95076.0,0.010522]
[1768705086307,0.02165695,95088.0,95076.0,0.010522]
[1768705086499,0.02165695,95087.0,95076.0,0.010522]
[1768705086695,0.02165695,95086.0,95076.0,0.010522]
[1768705086905,0.0939282,95091.0,95076.0,0.010522]
[1768705086906,0.02165695,95085.0,95076.0,0.010522]
[1768705087206,0.02165695,95084.0,95076.0,0.010522]
[1768705087400,9.5e-07,95083.0,95078.0,0.010522]
[1768705087594,0.0939282,95091.0,95078.0,0.010522]
[1768705089300,0.10315958,95091.0,95078.0,0.010522]
[1768705096305,0.00923138,95090.0,95078.0,0.010522]
[1768705099711,0.00923138,95090.0,95075.0,0.010522]
[1768705100011,0.00923138,95090.0,95077.0,0.010522]
[1768705103724,0.00909003,95088.0,95077.0,0.010522]
[1768705104018,0.00909003,95087.0,95077.0,0.010522]
[1768705105613,0.09110091,95088.0,95077.0,0.010522]
[1768705105808,0.00909003,95091.0,95079.0,0.010522]
[1768705106116,0.02174138,95090.0,95079.0,0.010522]
[1768705106313,0.00909003,95091.0,95079.0,0.010522]
[1768705106512,0.02174146,95090.0,95079.0,0.010522]
[1768705106712,0.00909003,95091.0,95079.0,0.010522]
[1768705106913,0.02174146,95090.0,95079.0,0.010522]
[1768705107221,0.00909003,95091.0,95079.0,0.010522]
[1768705107423,0.02174145,95090.0,95079.0,0.010522]
[1768705107622,0.00909003,95091.0,95079.0,0.010522]
[1768705107821,0.0217416,95090.0,95076.0,0.010522]
[1768705108120,0.00909003,95091.0,95072.0,0.09472]
[1768705108320,0.02174159,95090.0,95072.0,0.09472]
[1768705108523,0.00909003,95091.0,95072.0,0.09472]
[1768705108724,0.02174177,95090.0,95078.0,0.010522]
[1768705109023,0.00909003,95091.0,95078.0,0.010522]
[1768705109210,0.02174177,95090.0,95078.0,0.010522]
[1768705109415,0.00909003,95091.0,95078.0,0.010522]
[1768705109614,0.02174193,95090.0,95078.0,0.010522]
[1768705109822,0.00909003,95091.0,95078.0,0.010522]
[1768705110024,0.02174193,95090.0,95078.0,0.010522]
[1768705110228,0.00909003,95091.0,95080.0,0.010522]
[1768705110422,0.02174192,95090.0,95080.0,0.010522]
[1768705110622,0.00909003,95091.0,95080.0,0.010522]
[1768705110826,0.02174192,95090.0,95080.0,0.010522]
[1768705111020,0.00909003,95091.0,95080.0,0.010522]
[1768705111222,0.02174192,95090.0,95080.0,0.010522]
[1768705111526,0.00909003,95091.0,95080.0,0.010522]
[1768705111719,0.09110091,95092.0,95083.0,0.010521]
[1768705111920,9.7e-07,95091.0,95085.0,0.010521]
[1768705112227,0.00909003,95103.0,95089.0,0.010521]
[1768705113226,0.00909003,95103.0,95083.0,0.00917225]
[1768705113227,0.00909003,95103.0,95085.0,0.010521]
[1768705114522,0.00909003,95103.0,95083.0,0.00917225]
[1768705115626,0.00909003,95103.0,95087.0,0.010521]
[1768705116425,0.00918484,95102.0,95087.0,0.010521]
[1768705116629,0.00918484,95102.0,95084.0,0.010521]
[1768705117029,0.01970384,95102.0,95084.0,0.010521]
[1768705117230,0.00918484,95101.0,95084.0,0.010521]
[1768705117424,0.00918484,95100.0,95081.0,0.10627889]
[1768705120235,0.00918484,95100.0,95084.0,0.010521]
[1768705129240,0.00918484,95100.0,95086.0,0.010521]
[1768705129538,0.09822667,95101.0,95086.0,0.010521]
[1768705131640,0.09822667,95101.0,95088.0,0.010521]
[1768705134738,0.10802057,95101.0,95088.0,0.010521]
[1768705136638,0.0097939,95100.0,95088.0,0.010521]
[1768705139539,0.0097939,95100.0,95085.0,0.010521]
[1768705140135,0.0097939,95100.0,95081.0,0.20025716]
[1768705140829,0.0097939,95100.0,95086.0,0.010521]
[1768705143539,0.0097939,95100.0,95088.0,0.010521]
[1768705146043,0.0097939,95100.0,95085.0,0.010521]
[1768705157751,0.0097939,95100.0,95082.0,0.010521]
[1768705157941,0.0097939,95100.0,95081.0,0.20025716]
[1768705158763,0.09822667,95101.0,95085.0,0.010521]
[1768705164351,0.10792757,95101.0,95085.0,0.010521]
[1768705165651,0.11844657,95101.0,95082.0,0.010521]
[1768705166247,0.01052,95099.0,95082.0,0.010521]
[1768705167443,0.0202209,95099.0,95082.0,0.010521]
[1768705171656,0.0097009,95098.0,95082.0,0.010521]
[1768705175257,0.0202209,95098.0,95081.0,0.09472]
[1768705178260,0.0097009,95098.0,95082.0,0.010521]
[1768705180063,0.09889444,95099.0,95082.0,0.010521]
[1768705180558,0.01052,95098.0,95082.0,0.010521]
[1768705181261,0.09889444,95099.0,95081.0,0.09472]
[1768705181453,0.01052,95098.0,95081.0,0.09472]
[1768705183867,0.12106707,95100.0,95082.0,0.01996957]
[1768705187363,0.13012639,95100.0,95082.0,0.010521]
[1768705187966,0.00231326,95104.0,95090.0,0.11999664]
[1768705188159,0.00231326,95104.0,95090.0,0.13051664]
[1768705188570,0.00231326,95104.0,95092.0,0.01052]
[1768705189069,0.00231326,95104.0,95094.0,0.01052]
[1768705189566,2.6e-07,95104.0,95100.0,0.010519]
[1768705190157,0.010517,95120.0,95100.0,0.01996757]
[1768705190363,0.010518,95118.0,95100.0,0.11999664]
[1768705190569,0.010518,95115.0,95098.0,0.09457815]
[1768705190762,0.010518,95115.0,95096.0,0.00944857]
[1768705193371,0.023637,95115.0,95096.0,0.00944857]
[1768705193774,0.010518,95113.0,95094.0,0.01052]
[1768705193967,0.010518,95113.0,95094.0,0.02050115]
[1768705194574,0.00919303,95114.0,95094.0,0.02050115]
[1768705195268,0.010518,95113.0,95094.0,0.02050115]
[1768705195473,0.01971103,95113.0,95094.0,0.02050115]
[1768705197064,0.01971103,95113.0,95096.0,0.01052]
[1768705200377,0.00919303,95113.0,95096.0,0.01052]
[1768705200674,0.09004688,95114.0,95094.0,0.00998115]
[1768705200874,0.013119,95115.0,95102.0,0.010519]
[1768705201077,0.00919303,95117.0,95102.0,0.010519]
[1768705201777,0.00919303,95117.0,95095.0,0.00998115]
[1768705201778,0.00919303,95117.0,95098.0,0.01052]
[1768705202176,0.02277394,95117.0,95100.0,0.010519]
[1768705203282,0.01358091,95117.0,95102.0,0.010519]
[1768705203471,0.18476688,95119.0,95104.0,0.010519]
[1768705204172,0.19395991,95119.0,95100.0,0.13099692]
[1768705204371,0.01971103,95118.0,95100.0,0.12106707]
[1768705205768,0.01971103,95117.0,95100.0,0.11054807]
[1768705206178,0.010518,95115.0,95097.0,0.01052]
[1768705206483,0.010518,95115.0,95100.0,0.11054807]
[1768705207182,0.00919303,95116.0,95101.0,0.010519]
[1768705208374,0.00919303,95116.0,95100.0,0.12106707]
[1768705209475,0.010518,95115.0,95097.0,0.01052]
[1768705209675,0.010518,95115.0,95100.0,0.11054807]